[Event "*** Titled Tuesday 3|2 Blitz"]
[Site "Chess.com"]
[Date "2016.01.05"]
[Round "1"]
[White "IMRosen"]
[Black "Shankland"]
[Result "0-1"]
[WhiteElo "2217"]
[BlackElo "2531"]
[TimeControl "180+2"]
[EndTime "11:08:33 PST"]
[Termination "Shankland won by resignation"]

1. c4 {[%clk 0:03:01.2]} 1... g5 {[%clk 0:03:00.4]} 2. Nc3 {[%clk 0:03:01.8]}
2... Bg7 {[%clk 0:03:01.6]} 3. d4 {[%clk 0:02:58.6]} 3... h6 {[%clk 0:03:02.7]}
4. g3 {[%clk 0:02:50.1]} 4... d6 {[%clk 0:03:02.7]} 5. Bg2 {[%clk 0:02:51.5]}
5... Nc6 {[%clk 0:03:03.9]} 6. d5 {[%clk 0:02:50.4]} 6... Ne5 {[%clk 0:02:58.9]}
7. Nf3 {[%clk 0:02:48.5]} 7... Nxf3+ {[%clk 0:02:58]} 8. Bxf3 {[%clk 0:02:50.4]}
8... Nf6 {[%clk 0:02:58.4]} 9. O-O {[%clk 0:02:49]} 9... Bh3 {[%clk 0:02:59.4]}
10. Re1 {[%clk 0:02:49.8]} 10... Qd7 {[%clk 0:03:00.7]} 11. Be3 {[%clk
0:02:34.1]} 11... Ng4 {[%clk 0:02:43.7]} 12. Bd4 {[%clk 0:02:27.4]} 12... Ne5
{[%clk 0:02:44.6]} 13. Bh1 {[%clk 0:02:28.4]} 13... h5 {[%clk 0:02:45.3]} 14. e3
{[%clk 0:01:52.1]} 14... h4 {[%clk 0:02:29.3]} 15. Qa4 {[%clk 0:01:52.6]} 15...
Qxa4 {[%clk 0:02:22]} 16. Nxa4 {[%clk 0:01:54.5]} 16... hxg3 {[%clk 0:02:18.3]}
17. hxg3 {[%clk 0:01:51.9]} 17... g4 {[%clk 0:01:41.8]} 18. Bxe5 {[%clk
0:01:49.3]} 18... Bxe5 {[%clk 0:01:41.5]} 19. Be4 {[%clk 0:01:37.8]} 19... O-O-O
{[%clk 0:01:36.9]} 20. Nc3 {[%clk 0:01:39]} 20... Rh5 {[%clk 0:01:36.2]} 21.
Rab1 {[%clk 0:01:34.2]} 21... Rdh8 {[%clk 0:01:36.8]} 22. Ne2 {[%clk 0:01:35.6]}
22... Kd7 {[%clk 0:01:34.1]} 23. Nf4 {[%clk 0:01:36.2]} 23... R5h6 {[%clk
0:01:34.3]} 24. Nxh3 {[%clk 0:01:19.3]} 24... Rxh3 {[%clk 0:01:15.2]} 25. Bf5+
{[%clk 0:01:19]} 25... e6 {[%clk 0:01:16.7]} 26. Bxg4 {[%clk 0:01:20.2]} 26...
Rh1+ {[%clk 0:01:18.1]} 27. Kg2 {[%clk 0:01:21.7]} 27... R8h2+ {[%clk
0:01:18.6]} 28. Kf3 {[%clk 0:01:22.8]} 28... Rxe1 {[%clk 0:01:20]} 29. Rxe1
{[%clk 0:01:23.5]} 29... f5 {[%clk 0:01:19]} 30. dxe6+ {[%clk 0:01:14.7]} 30...
Kxe6 {[%clk 0:01:20.3]} 31. Bxf5+ {[%clk 0:01:14.9]} 31... Kxf5 {[%clk
0:01:21.5]} 32. b3 {[%clk 0:01:16.2]} 32... Ke6 {[%clk 0:01:19.3]} 33. Rd1
{[%clk 0:01:13]} 33... a5 {[%clk 0:01:20.5]} 34. Rd2 {[%clk 0:01:08.9]} 34... b6
{[%clk 0:01:21.2]} 35. Kg4 {[%clk 0:01:06.2]} 35... a4 {[%clk 0:01:20]} 36. Re2
{[%clk 0:00:54.6]} 36... a3 {[%clk 0:01:15.7]} 37. Rd2 {[%clk 0:00:51.1]} 37...
c6 {[%clk 0:01:09.9]} 38. e4 {[%clk 0:00:52.2]} 38... c5 {[%clk 0:01:10.7]} 39.
Kf3 {[%clk 0:00:40.9]} 39... Bd4 {[%clk 0:01:10.4]} 40. b4 {[%clk 0:00:40.5]}
40... Rxf2+ {[%clk 0:01:03.2]} 41. Rxf2 {[%clk 0:00:40.6]} 41... Bxf2 {[%clk
0:01:04.9]} 42. bxc5 {[%clk 0:00:28.7]} 42... Bxc5 {[%clk 0:01:04.8]} 43. Kf4
{[%clk 0:00:24.5]} 43... Bb4 {[%clk 0:01:03]} 44. g4 {[%clk 0:00:21.4]} 44...
Bd2+ {[%clk 0:01:04.1]} 45. Kf3 {[%clk 0:00:23]} 45... Ke5 {[%clk 0:01:05.3]}
46. Ke2 {[%clk 0:00:24.7]} 46... Bh6 {[%clk 0:01:06.6]} 47. Kd3 {[%clk
0:00:26.3]} 47... Kf4 {[%clk 0:01:03.3]} 48. Kd4 {[%clk 0:00:24.5]} 48... Kxg4
{[%clk 0:01:01.9]} 49. Kd5 {[%clk 0:00:24.2]} 49... Kf4 {[%clk 0:01:02.5]} 50.
Kxd6 {[%clk 0:00:24.9]} 50... Kxe4 {[%clk 0:01:03.1]} 51. c5 {[%clk 0:00:21.5]}
51... Bf8+ {[%clk 0:01:02]} 52. Kc6 {[%clk 0:00:18]} 52... bxc5 {[%clk
0:01:03.4]} 53. Kb5 {[%clk 0:00:19.1]} 53... Kd3 {[%clk 0:01:04.9]} 54. Ka4
{[%clk 0:00:20]} 54... c4 {[%clk 0:01:05.9]} 0-1

[Event "*** Titled Tuesday 3|2 Blitz"]
[Site "Chess.com"]
[Date "2016.01.05"]
[Round "1"]
[White "pedromartinez91"]
[Black "pKiLz5Rn9b"]
[Result "0-1"]
[WhiteElo "2053"]
[BlackElo "2354"]
[TimeControl "180+2"]
[EndTime "11:08:33 PST"]
[Termination "pKiLz5Rn9b won by resignation"]

1. d4 {[%clk 0:03:01.9]} 1... e6 {[%clk 0:03:00.6]} 2. c4 {[%clk 0:03:00.6]}
2... Nf6 {[%clk 0:03:01.3]} 3. Nf3 {[%clk 0:03:01.3]} 3... b6 {[%clk 0:03:02]}
4. Nc3 {[%clk 0:02:57.7]} 4... Bb4 {[%clk 0:03:02]} 5. Bg5 {[%clk 0:02:57.7]}
5... h6 {[%clk 0:03:00.8]} 6. Bxf6 {[%clk 0:02:56.8]} 6... Qxf6 {[%clk 0:03:01]}
7. Qc2 {[%clk 0:02:57.1]} 7... a5 {[%clk 0:02:57.8]} 8. a3 {[%clk 0:02:57.5]}
8... Bxc3+ {[%clk 0:02:59.1]} 9. Qxc3 {[%clk 0:02:58.4]} 9... Bb7 {[%clk
0:02:56.8]} 10. Nd2 {[%clk 0:02:49.9]} 10... d6 {[%clk 0:02:53.6]} 11. f3 {[%clk
0:02:50.3]} 11... O-O {[%clk 0:02:53.9]} 12. e4 {[%clk 0:02:45.5]} 12... Nc6
{[%clk 0:02:54.8]} 13. d5 {[%clk 0:02:35.7]} 13... Qxc3 {[%clk 0:02:53.4]} 14.
bxc3 {[%clk 0:02:36.6]} 14... Ne5 {[%clk 0:02:52]} 15. f4 {[%clk 0:02:34.2]}
15... Nd7 {[%clk 0:02:52.5]} 16. Kf2 {[%clk 0:02:33.9]} 16... Nc5 {[%clk
0:02:52]} 17. g3 {[%clk 0:02:28.6]} 17... Rfe8 {[%clk 0:02:49]} 18. Bg2 {[%clk
0:02:23.5]} 18... Ba6 {[%clk 0:02:50.1]} 19. Ke3 {[%clk 0:02:16.3]} 19... Rad8
{[%clk 0:02:49.3]} 20. Rhf1 {[%clk 0:01:45]} 20... Re7 {[%clk 0:02:49.9]} 21.
Rfe1 {[%clk 0:01:33.4]} 21... Rde8 {[%clk 0:02:49.6]} 22. Kf3 {[%clk 0:01:33.2]}
22... e5 {[%clk 0:02:27.7]} 23. f5 {[%clk 0:01:31.8]} 23... Nd3 {[%clk
0:02:18.8]} 24. Reb1 {[%clk 0:01:22.4]} 24... Rc8 {[%clk 0:02:08.9]} 25. Ke3
{[%clk 0:01:22.6]} 25... Nc5 {[%clk 0:02:09.7]} 26. Bf1 {[%clk 0:01:16.9]} 26...
Kf8 {[%clk 0:02:05.7]} 27. g4 {[%clk 0:01:15.3]} 27... Nd7 {[%clk 0:02:02.4]}
28. h4 {[%clk 0:01:11.8]} 28... g5 {[%clk 0:01:53.8]} 29. Be2 {[%clk 0:01:05.7]}
29... Kg7 {[%clk 0:01:53]} 30. Rh1 {[%clk 0:01:04.4]} 30... Nf6 {[%clk
0:01:41.1]} 31. Kf3 {[%clk 0:00:57.6]} 31... c6 {[%clk 0:01:39.6]} 32. Rab1
{[%clk 0:00:46.9]} 32... Rb7 {[%clk 0:01:40.5]} 33. dxc6 {[%clk 0:00:27.2]}
33... Rxc6 {[%clk 0:01:40.8]} 34. Ke3 {[%clk 0:00:23.8]} 34... Rb8 {[%clk
0:01:29]} 35. a4 {[%clk 0:00:23.9]} 35... Nd7 {[%clk 0:01:06]} 36. hxg5 {[%clk
0:00:24.2]} 36... hxg5 {[%clk 0:01:07.9]} 37. Rh5 {[%clk 0:00:25.3]} 37... Kf6
{[%clk 0:00:57]} 38. Rh6+ {[%clk 0:00:24.5]} 38... Ke7 {[%clk 0:00:58.4]} 39.
Nb3 {[%clk 0:00:25.7]} 39... Bxc4 {[%clk 0:00:55.1]} 40. Nxa5 {[%clk 0:00:26.4]}
40... bxa5 {[%clk 0:00:55.6]} 41. Rxb8 {[%clk 0:00:25.4]} 41... Nxb8 {[%clk
0:00:57]} 42. f6+ {[%clk 0:00:26.7]} 42... Ke6 {[%clk 0:00:50.5]} 43. Bd1 {[%clk
0:00:25]} 43... Nd7 {[%clk 0:00:51.5]} 44. Rh5 {[%clk 0:00:25]} 44... Nxf6
{[%clk 0:00:52.2]} 45. Rxg5 {[%clk 0:00:26]} 45... Ke7 {[%clk 0:00:53.5]} 46.
Rf5 {[%clk 0:00:26.4]} 46... Be6 {[%clk 0:00:54.1]} 47. Rf2 {[%clk 0:00:24.7]}
47... Rxc3+ {[%clk 0:00:55.1]} 48. Kd2 {[%clk 0:00:25.3]} 48... Nxe4+ {[%clk
0:00:56.1]} 0-1

[Event "*** Titled Tuesday 3|2 Blitz"]
[Site "Chess.com"]
[Date "2016.01.05"]
[Round "1"]
[White "Lupul_Cenusiu"]
[Black "Carolina-moon"]
[Result "1-0"]
[WhiteElo "2363"]
[BlackElo "2017"]
[TimeControl "180+2"]
[EndTime "11:08:35 PST"]
[Termination "Lupul_Cenusiu won by checkmate"]

1. d4 {[%clk 0:03:00.5]} 1... f5 {[%clk 0:02:59.6]} 2. Nc3 {[%clk 0:03:00.6]}
2... Nf6 {[%clk 0:02:58.7]} 3. Bg5 {[%clk 0:03:01.4]} 3... d5 {[%clk 0:02:59.7]}
4. Nf3 {[%clk 0:03:00.3]} 4... e6 {[%clk 0:02:59.6]} 5. e3 {[%clk 0:03:00.7]}
5... Nbd7 {[%clk 0:02:51.3]} 6. Bd3 {[%clk 0:02:56.8]} 6... h6 {[%clk
0:02:47.1]} 7. Bf4 {[%clk 0:02:55.4]} 7... Nh5 {[%clk 0:02:39.6]} 8. Be5 {[%clk
0:02:51.2]} 8... Nxe5 {[%clk 0:02:24.1]} 9. Nxe5 {[%clk 0:02:46.8]} 9... Nf6
{[%clk 0:02:24.2]} 10. Ng6 {[%clk 0:02:44.2]} 10... Rg8 {[%clk 0:02:23.6]} 11.
h4 {[%clk 0:02:44]} 11... h5 {[%clk 0:02:07.5]} 12. Be2 {[%clk 0:02:43]} 12...
Ng4 {[%clk 0:01:52.3]} 13. Bxg4 {[%clk 0:02:41]} 13... hxg4 {[%clk 0:01:50.5]}
14. Ne2 {[%clk 0:02:35.3]} 14... Bd6 {[%clk 0:01:50.2]} 15. Nef4 {[%clk
0:02:32.1]} 15... Bxf4 {[%clk 0:01:49.7]} 16. exf4 {[%clk 0:02:32.2]} 16... Qf6
{[%clk 0:01:45.3]} 17. Ne5 {[%clk 0:02:31.6]} 17... Bd7 {[%clk 0:01:41.9]} 18.
Qe2 {[%clk 0:02:31.5]} 18... O-O-O {[%clk 0:01:41.1]} 19. a4 {[%clk 0:02:28.9]}
19... Be8 {[%clk 0:01:37.3]} 20. g3 {[%clk 0:02:26.4]} 20... Qf8 {[%clk
0:01:19.8]} 21. Ra3 {[%clk 0:02:18.3]} 21... g6 {[%clk 0:01:13.6]} 22. Qd2
{[%clk 0:02:15.9]} 22... Qd6 {[%clk 0:01:08.2]} 23. Qc3 {[%clk 0:02:13.6]} 23...
Kb8 {[%clk 0:01:07.2]} 24. b4 {[%clk 0:02:14.3]} 24... Qa6 {[%clk 0:01:02.2]}
25. b5 {[%clk 0:02:13.5]} 25... Qb6 {[%clk 0:01:01.3]} 26. Kd2 {[%clk
0:02:10.8]} 26... Rc8 {[%clk 0:00:57.2]} 27. Rb1 {[%clk 0:02:08.1]} 27... Ka8
{[%clk 0:00:50.7]} 28. a5 {[%clk 0:02:06.4]} 28... Qd6 {[%clk 0:00:50.7]} 29.
Qc5 {[%clk 0:02:04.8]} 29... Rf8 {[%clk 0:00:40.6]} 30. Rc3 {[%clk 0:01:58.8]}
30... Qxc5 {[%clk 0:00:39]} 31. dxc5 {[%clk 0:01:55]} 31... c6 {[%clk
0:00:35.6]} 32. bxc6 {[%clk 0:01:55.6]} 32... Bxc6 {[%clk 0:00:35.7]} 33. Ke3
{[%clk 0:01:53.6]} 33... Rfd8 {[%clk 0:00:35.9]} 34. Kd4 {[%clk 0:01:54.5]}
34... Be8 {[%clk 0:00:35.1]} 35. Ra3 {[%clk 0:01:42]} 35... a6 {[%clk
0:00:34.8]} 36. Rb6 {[%clk 0:01:41.9]} 36... Bc6 {[%clk 0:00:34.8]} 37. Nxg6
{[%clk 0:01:40.9]} 37... Ka7 {[%clk 0:00:32.5]} 38. Rab3 {[%clk 0:01:39.5]}
38... Rc7 {[%clk 0:00:31.9]} 39. Ne5 {[%clk 0:01:36.8]} 39... Rdc8 {[%clk
0:00:32.4]} 40. Nxc6+ {[%clk 0:01:36.8]} 40... bxc6 {[%clk 0:00:33.6]} 41. Ke5
{[%clk 0:01:36.8]} 41... Re8 {[%clk 0:00:34]} 42. Re3 {[%clk 0:01:29.3]} 42...
Ree7 {[%clk 0:00:34.6]} 43. Kd4 {[%clk 0:01:30]} 43... Re8 {[%clk 0:00:35.1]}
44. Re5 {[%clk 0:01:30.9]} 44... Ree7 {[%clk 0:00:36.1]} 45. c3 {[%clk
0:01:31.1]} 45... Re8 {[%clk 0:00:37.4]} 46. Rb1 {[%clk 0:01:32]} 46... Ree7
{[%clk 0:00:38.8]} 47. Rbe1 {[%clk 0:01:32.4]} 47... Rb7 {[%clk 0:00:38.4]} 48.
Rxe6 {[%clk 0:01:33.8]} 48... Rxe6 {[%clk 0:00:39.7]} 49. Rxe6 {[%clk
0:01:34.8]} 49... Rb2 {[%clk 0:00:41.6]} 50. h5 {[%clk 0:01:30.1]} 50... Rxf2
{[%clk 0:00:40.9]} 51. h6 {[%clk 0:01:30.8]} 51... Rh2 {[%clk 0:00:41.7]} 52.
Ke5 {[%clk 0:01:31.6]} 52... Rh5 {[%clk 0:00:38]} 53. Re7+ {[%clk 0:01:30.9]}
53... Kb8 {[%clk 0:00:37.7]} 54. h7 {[%clk 0:01:32.4]} 54... d4 {[%clk
0:00:35.2]} 55. cxd4 {[%clk 0:01:32.4]} 55... Rh6 {[%clk 0:00:33.4]} 56. Re8+
{[%clk 0:01:32.4]} 56... Kc7 {[%clk 0:00:34.3]} 57. h8=Q {[%clk 0:01:32.8]}
57... Re6+ {[%clk 0:00:33.9]} 58. Kxe6 {[%clk 0:01:33.7]} 58... Kb7 {[%clk
0:00:34]} 59. Re7# {[%clk 0:01:34.9]} 1-0

[Event "*** Titled Tuesday 3|2 Blitz"]
[Site "Chess.com"]
[Date "2016.01.05"]
[Round "1"]
[White "chorejason"]
[Black "GianmarcoVaR"]
[Result "0-1"]
[WhiteElo "1871"]
[BlackElo "2289"]
[TimeControl "180+2"]
[EndTime "11:09:04 PST"]
[Termination "GianmarcoVaR won on time"]

1. e4 {[%clk 0:02:51.8]} 1... c6 {[%clk 0:02:59.8]} 2. d4 {[%clk 0:02:50.6]}
2... d5 {[%clk 0:03:01.3]} 3. Nc3 {[%clk 0:02:51.9]} 3... dxe4 {[%clk
0:03:02.3]} 4. Nxe4 {[%clk 0:02:53.3]} 4... Bf5 {[%clk 0:03:03.9]} 5. Ng3 {[%clk
0:02:53.7]} 5... Bg6 {[%clk 0:03:05.5]} 6. h4 {[%clk 0:02:55.1]} 6... h6 {[%clk
0:03:07.1]} 7. Nf3 {[%clk 0:02:56.6]} 7... Nd7 {[%clk 0:03:06.6]} 8. h5 {[%clk
0:02:58]} 8... Bh7 {[%clk 0:03:08.1]} 9. Bd3 {[%clk 0:02:59.6]} 9... Bxd3 {[%clk
0:03:08.9]} 10. Qxd3 {[%clk 0:03:01.3]} 10... e6 {[%clk 0:03:10.7]} 11. Bf4
{[%clk 0:02:58.9]} 11... Qa5+ {[%clk 0:03:08.7]} 12. Bd2 {[%clk 0:02:56.5]}
12... Bb4 {[%clk 0:03:09.6]} 13. c3 {[%clk 0:02:56.8]} 13... Be7 {[%clk
0:03:10.9]} 14. c4 {[%clk 0:02:58.3]} 14... Qc7 {[%clk 0:03:11.9]} 15. O-O-O
{[%clk 0:02:49.4]} 15... Ngf6 {[%clk 0:03:11.1]} 16. Kb1 {[%clk 0:02:49.4]}
16... b5 {[%clk 0:02:50.8]} 17. cxb5 {[%clk 0:02:40.3]} 17... cxb5 {[%clk
0:02:51.8]} 18. Qxb5 {[%clk 0:02:40.4]} 18... Rb8 {[%clk 0:02:48]} 19. Qd3
{[%clk 0:02:32.8]} 19... O-O {[%clk 0:02:28.4]} 20. Rc1 {[%clk 0:02:32.8]} 20...
Qb7 {[%clk 0:02:26.6]} 21. b3 {[%clk 0:02:11.6]} 21... Qd5 {[%clk 0:01:32.7]}
22. Qe2 {[%clk 0:01:40.5]} 22... a5 {[%clk 0:01:28.2]} 23. Qc4 {[%clk
0:01:36.7]} 23... Qa8 {[%clk 0:00:56.2]} 24. Qa4 {[%clk 0:01:31.4]} 24... Bb4
{[%clk 0:00:49]} 25. Rc7 {[%clk 0:01:21.3]} 25... Bxd2 {[%clk 0:00:42]} 26. Nxd2
{[%clk 0:01:22.2]} 26... Qxg2 {[%clk 0:00:40.2]} 27. Rxd7 {[%clk 0:01:18.5]}
27... Nxd7 {[%clk 0:00:23.2]} 28. Qxd7 {[%clk 0:01:16.4]} 28... Rfd8 {[%clk
0:00:22.6]} 29. Qa4 {[%clk 0:01:06.7]} 29... Qxf2 {[%clk 0:00:21.2]} 30. Nde4
{[%clk 0:01:02.5]} 30... Qxd4 {[%clk 0:00:20.4]} 31. Qxa5 {[%clk 0:00:59]} 31...
f5 {[%clk 0:00:21.2]} 32. Nc5 {[%clk 0:00:51.9]} 32... Ra8 {[%clk 0:00:14.3]}
33. Qb6 {[%clk 0:00:48.7]} 33... Rd6 {[%clk 0:00:10.6]} 34. Qb7 {[%clk 0:00:48]}
34... Rad8 {[%clk 0:00:09.7]} 35. Rc1 {[%clk 0:00:40.5]} 35... Rd5 {[%clk
0:00:05.8]} 36. Nxe6 {[%clk 0:00:39.9]} 36... Qd3+ {[%clk 0:00:07.2]} 37. Kb2
{[%clk 0:00:36.9]} 37... Qxg3 {[%clk 0:00:07.2]} 38. Rc8 {[%clk 0:00:29.2]}
38... Qg2+ {[%clk 0:00:06]} 39. Rc2 {[%clk 0:00:20]} 39... Qg3 {[%clk
0:00:05.1]} 40. Rc7 {[%clk 0:00:18.1]} 40... Qe5+ {[%clk 0:00:05.1]} 0-1

[Event "*** Titled Tuesday 3|2 Blitz"]
[Site "Chess.com"]
[Date "2016.01.05"]
[Round "1"]
[White "Frolyanov_D"]
[Black "AdrianaNikolova"]
[Result "1-0"]
[WhiteElo "2480"]
[BlackElo "2183"]
[TimeControl "180+2"]
[EndTime "11:09:21 PST"]
[Termination "Frolyanov_D won by resignation"]

1. e4 {[%clk 0:03:00.5]} 1... c5 {[%clk 0:02:06.5]} 2. Nf3 {[%clk 0:02:45.3]}
2... Nc6 {[%clk 0:02:06.3]} 3. Nc3 {[%clk 0:02:40.4]} 3... d6 {[%clk 0:02:06.7]}
4. Bb5 {[%clk 0:02:36]} 4... Bd7 {[%clk 0:02:07]} 5. O-O {[%clk 0:02:35.8]} 5...
Nf6 {[%clk 0:02:07.1]} 6. Bxc6 {[%clk 0:02:31.4]} 6... Bxc6 {[%clk 0:02:07.4]}
7. e5 {[%clk 0:02:32.4]} 7... dxe5 {[%clk 0:02:07.7]} 8. Nxe5 {[%clk 0:02:33.4]}
8... Qc7 {[%clk 0:02:09.2]} 9. Re1 {[%clk 0:02:16.2]} 9... e6 {[%clk 0:02:09.8]}
10. d4 {[%clk 0:02:13.5]} 10... Rd8 {[%clk 0:02:05.1]} 11. Bg5 {[%clk 0:01:50]}
11... Be7 {[%clk 0:01:56.1]} 12. Bxf6 {[%clk 0:01:44.1]} 12... Bxf6 {[%clk
0:01:54.6]} 13. Nxc6 {[%clk 0:01:41.2]} 13... bxc6 {[%clk 0:01:45.4]} 14. Qh5
{[%clk 0:01:40.7]} 14... cxd4 {[%clk 0:00:50.8]} 15. Ne4 {[%clk 0:01:24.4]}
15... Be7 {[%clk 0:00:43.4]} 16. Rad1 {[%clk 0:01:08.5]} 16... O-O {[%clk
0:00:41.1]} 17. Rd3 {[%clk 0:01:08.4]} 17... f5 {[%clk 0:00:30.7]} 18. Ng5
{[%clk 0:01:05.7]} 18... Bxg5 {[%clk 0:00:30.8]} 19. Qxg5 {[%clk 0:01:07.6]}
19... Rf6 {[%clk 0:00:24.9]} 20. Rg3 {[%clk 0:00:49.4]} 20... Rg6 {[%clk
0:00:17.8]} 21. Qd2 {[%clk 0:00:50]} 21... Rxg3 {[%clk 0:00:18.6]} 22. hxg3
{[%clk 0:00:51.9]} 22... e5 {[%clk 0:00:20.1]} 23. Qg5 {[%clk 0:00:50.2]} 23...
g6 {[%clk 0:00:20.4]} 24. Rxe5 {[%clk 0:00:50]} 24... Qxe5 {[%clk 0:00:22.2]}
25. Qxd8+ {[%clk 0:00:50.8]} 25... Kg7 {[%clk 0:00:23.8]} 26. Kh2 {[%clk
0:00:42.6]} 26... c5 {[%clk 0:00:24.7]} 27. Qd7+ {[%clk 0:00:41.3]} 27... Kh6
{[%clk 0:00:26]} 28. Qxa7 {[%clk 0:00:40.5]} 28... c4 {[%clk 0:00:26.9]} 29. Qd7
{[%clk 0:00:37.9]} 29... Qe4 {[%clk 0:00:26]} 30. Qd8 {[%clk 0:00:36.1]} 30...
Kg7 {[%clk 0:00:26]} 31. a4 {[%clk 0:00:34.2]} 31... d3 {[%clk 0:00:26.5]} 32.
cxd3 {[%clk 0:00:35.1]} 32... cxd3 {[%clk 0:00:28.4]} 33. a5 {[%clk 0:00:35.4]}
33... Qe2 {[%clk 0:00:27.3]} 34. Qd4+ {[%clk 0:00:32.6]} 34... Kf7 {[%clk
0:00:27.6]} 35. a6 {[%clk 0:00:26.1]} 35... d2 {[%clk 0:00:27.5]} 36. a7 {[%clk
0:00:24.5]} 36... Qh5+ {[%clk 0:00:25.1]} 37. Qh4 {[%clk 0:00:25.1]} 37... Qxh4+
{[%clk 0:00:17.8]} 38. gxh4 {[%clk 0:00:27]} 38... d1=Q {[%clk 0:00:19.7]} 39.
a8=Q {[%clk 0:00:27.4]} 39... Qd4 {[%clk 0:00:20.6]} 40. Qb7+ {[%clk 0:00:27.1]}
40... Kf6 {[%clk 0:00:20.3]} 41. Qc6+ {[%clk 0:00:26.6]} 41... Kf7 {[%clk
0:00:21]} 42. Qc7+ {[%clk 0:00:27.4]} 42... Kf6 {[%clk 0:00:22]} 43. Qc3 {[%clk
0:00:27.7]} 43... Qxc3 {[%clk 0:00:11.3]} 44. bxc3 {[%clk 0:00:28.4]} 44... Ke5
{[%clk 0:00:12.8]} 45. Kg3 {[%clk 0:00:28.5]} 45... Kd5 {[%clk 0:00:13.9]} 46.
Kf4 {[%clk 0:00:28.7]} 46... Kc4 {[%clk 0:00:14.6]} 47. Kg5 {[%clk 0:00:28.8]}
47... Kxc3 {[%clk 0:00:16.5]} 48. Kh6 {[%clk 0:00:29.7]} 48... Kd3 {[%clk
0:00:17.7]} 49. Kxh7 {[%clk 0:00:30.6]} 49... Ke2 {[%clk 0:00:19.6]} 50. Kxg6
{[%clk 0:00:31.4]} 50... f4 {[%clk 0:00:21.5]} 51. Kf5 {[%clk 0:00:31.1]} 51...
Kxf2 {[%clk 0:00:23.1]} 52. Kxf4 {[%clk 0:00:31.5]} 52... Kxg2 {[%clk 0:00:25]}
53. h5 {[%clk 0:00:32.6]} 53... Kf2 {[%clk 0:00:26.9]} 54. h6 {[%clk 0:00:33.7]}
54... Ke2 {[%clk 0:00:28.8]} 1-0

[Event "*** Titled Tuesday 3|2 Blitz"]
[Site "Chess.com"]
[Date "2016.01.05"]
[Round "1"]
[White "PowerThinking2650"]
[Black "TheLancer"]
[Result "0-1"]
[WhiteElo "2079"]
[BlackElo "2388"]
[TimeControl "180+2"]
[EndTime "11:09:29 PST"]
[Termination "TheLancer won on time"]

1. e4 {[%clk 0:02:00.5]} 1... c5 {[%clk 0:02:58.1]} 2. Nf3 {[%clk 0:01:59.6]}
2... g6 {[%clk 0:02:56.7]} 3. d4 {[%clk 0:01:59.7]} 3... cxd4 {[%clk 0:02:58.1]}
4. Nxd4 {[%clk 0:02:00]} 4... Bg7 {[%clk 0:02:58.7]} 5. c4 {[%clk 0:02:00.7]}
5... Nc6 {[%clk 0:02:59.9]} 6. Be3 {[%clk 0:02:00.9]} 6... Nf6 {[%clk
0:03:01.1]} 7. Nc3 {[%clk 0:02:01.1]} 7... d6 {[%clk 0:03:02.7]} 8. Be2 {[%clk
0:02:01.5]} 8... O-O {[%clk 0:03:01.2]} 9. O-O {[%clk 0:02:01.9]} 9... Nxd4
{[%clk 0:03:02.8]} 10. Bxd4 {[%clk 0:02:02.4]} 10... Be6 {[%clk 0:03:04.2]} 11.
b3 {[%clk 0:01:58.6]} 11... Qa5 {[%clk 0:03:05.1]} 12. Rc1 {[%clk 0:01:53.6]}
12... Rfc8 {[%clk 0:03:05.5]} 13. f4 {[%clk 0:01:52]} 13... a6 {[%clk
0:02:39.9]} 14. f5 {[%clk 0:01:50]} 14... Bd7 {[%clk 0:02:26.7]} 15. g4 {[%clk
0:01:41.4]} 15... Bc6 {[%clk 0:02:23.5]} 16. g5 {[%clk 0:01:27]} 16... Nxe4
{[%clk 0:02:09.1]} 17. Bxg7 {[%clk 0:01:26.4]} 17... Kxg7 {[%clk 0:02:07.5]} 18.
Nxe4 {[%clk 0:01:26.3]} 18... Bxe4 {[%clk 0:02:07.3]} 19. f6+ {[%clk 0:01:11.6]}
19... exf6 {[%clk 0:01:59.8]} 20. gxf6+ {[%clk 0:01:03.9]} 20... Kh8 {[%clk
0:01:52.2]} 21. Qxd6 {[%clk 0:01:02.9]} 21... Qxa2 {[%clk 0:01:34.4]} 22. Rf2
{[%clk 0:00:54.3]} 22... Qxb3 {[%clk 0:01:06.6]} 23. Qf4 {[%clk 0:00:54.4]}
23... Bf5 {[%clk 0:00:51.3]} 24. Rf3 {[%clk 0:00:36.7]} 24... Qb6+ {[%clk
0:00:47.1]} 25. c5 {[%clk 0:00:19.3]} 25... Qxf6 {[%clk 0:00:32.7]} 26. Bd3
{[%clk 0:00:15.5]} 26... a5 {[%clk 0:00:11.4]} 27. Bxf5 {[%clk 0:00:15.6]} 27...
gxf5 {[%clk 0:00:11.4]} 28. Qxf5 {[%clk 0:00:16.5]} 28... Qxf5 {[%clk
0:00:12.6]} 29. Rxf5 {[%clk 0:00:17.4]} 29... Rc7 {[%clk 0:00:12.7]} 30. Ra1
{[%clk 0:00:15]} 30... a4 {[%clk 0:00:13]} 31. Rf4 {[%clk 0:00:14.5]} 31... Rxc5
{[%clk 0:00:12.8]} 32. Rfxa4 {[%clk 0:00:14.9]} 32... Rxa4 {[%clk 0:00:14.7]}
33. Rxa4 {[%clk 0:00:15.5]} 33... Rb5 {[%clk 0:00:15.4]} 34. Ra8+ {[%clk
0:00:14.4]} 34... Kg7 {[%clk 0:00:16.3]} 35. Kg2 {[%clk 0:00:13.8]} 35... Rb2+
{[%clk 0:00:17]} 36. Kg3 {[%clk 0:00:14.6]} 36... b5 {[%clk 0:00:18.9]} 37. Rb8
{[%clk 0:00:14.9]} 37... b4 {[%clk 0:00:19.8]} 38. Rb6 {[%clk 0:00:15.2]} 38...
b3 {[%clk 0:00:21.1]} 39. h3 {[%clk 0:00:16]} 39... Rb1 {[%clk 0:00:22.5]} 40.
Kg2 {[%clk 0:00:17]} 40... f6 {[%clk 0:00:22.8]} 41. Kh2 {[%clk 0:00:17.3]}
41... Kg6 {[%clk 0:00:24.4]} 42. Rb5 {[%clk 0:00:16.9]} 42... f5 {[%clk
0:00:24.4]} 43. Kg2 {[%clk 0:00:17.3]} 43... Kg5 {[%clk 0:00:25]} 44. Rb4 {[%clk
0:00:16.8]} 44... b2 {[%clk 0:00:21.9]} 45. h4+ {[%clk 0:00:13.7]} 45... Kh5
{[%clk 0:00:23.1]} 46. Kh2 {[%clk 0:00:14.6]} 46... f4 {[%clk 0:00:22.9]} 47.
Rxf4 {[%clk 0:00:08]} 47... Rc1 {[%clk 0:00:20.9]} 0-1